bitfinex/quotes_BTCUSD_20241223
["timestamp","ask_amount","ask_price","bid_price","bid_amount"]
[1734964991544,0.0005327,94370.0,94368.0,0.211934]
[1734964991754,0.0005327,94370.0,94364.0,0.214945]
[1734964991755,0.0005327,94370.0,94364.0,0.003]
[1734964991953,0.0005327,94370.0,94363.0,8.56e-05]
[1734964992595,0.10398632,94369.0,94368.0,8.57e-05]
[1734964992791,0.20398632,94369.0,94368.0,8.57e-05]
[1734964992997,0.0005327,94370.0,94368.0,8.57e-05]
[1734964993398,0.211934,94369.0,94368.0,8.57e-05]
[1734964993778,0.41592032,94369.0,94368.0,8.57e-05]
[1734964993984,0.31592032,94369.0,94368.0,8.57e-05]
[1734964994195,0.41592032,94369.0,94368.0,8.57e-05]
[1734964994583,0.43252165,94369.0,94368.0,8.57e-05]
[1734964996073,0.33252165,94369.0,94368.0,8.57e-05]
[1734964996300,0.43252165,94369.0,94368.0,8.57e-05]
[1734964996499,0.0105327,94370.0,94368.0,8.57e-05]
[1734964997487,0.0105327,94370.0,94369.0,0.211934]
[1734964997690,0.0105327,94370.0,94369.0,0.21882334]
[1734964997863,0.0105327,94370.0,94368.0,8.57e-05]
[1734964998339,0.10398632,94369.0,94368.0,8.57e-05]
[1734964998589,0.41724505,94369.0,94368.0,8.57e-05]
[1734964998837,0.41592032,94369.0,94368.0,8.57e-05]
[1734964999093,0.1,94369.0,94368.0,8.57e-05]
[1734964999595,0.2219104,94369.0,94368.0,8.57e-05]
[1734964999846,0.22058577,94369.0,94368.0,8.57e-05]
[1734965000587,0.12058577,94369.0,94368.0,8.57e-05]
[1734965001097,0.01659945,94369.0,94368.0,8.57e-05]
[1734965001346,0.22058577,94369.0,94368.0,8.57e-05]
[1734965001598,0.0105327,94370.0,94368.0,8.57e-05]
[1734965001834,0.0105327,94370.0,94369.0,0.211934]
[1734965002321,0.0105327,94370.0,94368.0,0.03549102]
[1734965002729,0.0105327,94370.0,94368.0,0.02120689]
[1734965002989,0.0105327,94370.0,94369.0,0.02332315]
[1734965003206,0.0105327,94370.0,94369.0,0.23525715]
[1734965004796,0.0105327,94370.0,94368.0,0.02520689]
[1734965004974,0.18448632,94369.0,94368.0,8.57e-05]
[1734965005170,0.0105327,94370.0,94369.0,0.003]
[1734965005575,0.0107039,94370.0,94369.0,0.003]
[1734965005778,0.0107039,94370.0,94368.0,8.57e-05]
[1734965005779,0.21469022,94370.0,94368.0,8.57e-05]
[1734965005977,0.41724501,94369.0,94368.0,8.57e-05]
[1734965006339,0.41592032,94369.0,94368.0,8.57e-05]
[1734965007208,0.46582032,94369.0,94368.0,8.57e-05]
[1734965007416,0.1,94359.0,94343.0,0.211991]
[1734965007592,0.10367132,94358.0,94343.0,0.211991]
[1734965007952,0.20367132,94358.0,94343.0,0.211991]
[1734965008111,0.1,94358.0,94343.0,0.211991]
[1734965008318,0.211949,94363.0,94343.0,0.211991]
[1734965008525,0.1,94359.0,94343.0,0.211991]
[1734965008734,0.10398632,94362.0,94343.0,0.211991]
[1734965008931,0.10398632,94362.0,94343.0,0.423983]
[1734965009135,0.01660095,94356.0,94343.0,0.423983]
[1734965009337,0.01660095,94356.0,94343.0,0.001]
[1734965009898,0.01660095,94356.0,94344.0,0.21199]
[1734965010173,0.211965,94355.0,94343.0,0.001]
[1734965010310,0.31595132,94355.0,94343.0,0.001]
[1734965010543,0.10398632,94355.0,94343.0,0.001]
[1734965010755,0.01660095,94356.0,94343.0,0.001]
[1734965010962,0.01660095,94356.0,94344.0,0.211989]
[1734965011611,0.01660095,94356.0,94342.0,0.211993]
[1734965012229,0.01660095,94356.0,94344.0,0.001]
[1734965012638,0.01660095,94356.0,94344.0,0.211989]
[1734965012865,0.01660095,94356.0,94345.0,0.04448234]
[1734965012996,0.1,94365.0,94346.0,0.211985]
[1734965013216,0.1,94362.0,94342.0,0.001]
[1734965013423,0.211947,94363.0,94348.0,0.199966]
[1734965013622,0.0107039,94370.0,94353.0,0.211969]
[1734965013821,0.0107039,94370.0,94353.0,0.423938]
[1734965014035,0.0107039,94370.0,94339.0,0.02084145]
[1734965014036,0.0107039,94370.0,94367.0,0.211938]
[1734965014244,0.02081893,94420.0,94359.0,0.15551424]
[1734965014245,0.0758,94417.0,94370.0,0.25]
[1734965014454,0.09320755,94412.0,94401.0,0.21186]
[1734965014653,0.09320755,94412.0,94398.0,0.02098028]
[1734965014862,0.40504655,94412.0,94398.0,0.02098028]
[1734965015076,0.15551424,94410.0,94398.0,0.02098028]
[1734965015306,0.40504655,94412.0,94398.0,0.02098028]
[1734965015307,0.09320755,94412.0,94398.0,0.02098028]
[1734965015733,0.09320755,94412.0,94398.0,0.02114068]
[1734965015930,0.09420755,94412.0,94405.0,0.211852]
[1734965016154,0.001,94412.0,94403.0,0.211856]
[1734965016608,0.001,94412.0,94405.0,0.211853]
[1734965016809,0.001,94412.0,94404.0,0.00574919]
[1734965017112,0.211839,94411.0,94406.0,0.0015526]
[1734965017314,0.211839,94411.0,94398.0,0.0001604]
[1734965017315,0.211866,94399.0,94398.0,0.0001604]
[1734965017518,0.31585232,94399.0,94398.0,0.0001604]
[1734965017769,0.41585232,94399.0,94398.0,0.0001604]
[1734965018378,0.211904,94382.0,94381.0,0.02108219]
[1734965018580,0.41589032,94382.0,94381.0,0.00016037]
[1734965019586,0.53819032,94382.0,94381.0,0.00016037]
[1734965019798,0.211973,94352.0,94343.0,8.56e-05]
[1734965019996,0.211973,94352.0,94343.0,0.0006183]
[1734965020247,0.211978,94349.0,94343.0,0.0006183]
[1734965020457,0.31199,94344.0,94343.0,0.0006183]
[1734965020663,0.46327632,94344.0,94343.0,0.0006183]
[1734965022385,0.46627632,94344.0,94343.0,0.0006183]
[1734965022547,0.47664466,94344.0,94343.0,0.0006183]
[1734965022754,0.312008,94336.0,94296.0,0.02139563]
[1734965022950,0.41599432,94336.0,94300.0,0.212128]
[1734965023161,0.05083257,94344.0,94300.0,0.212128]
[1734965023162,0.15083257,94344.0,94309.0,0.212068]
[1734965023355,0.00353257,94344.0,94330.0,0.21202]
[1734965023518,0.00353257,94344.0,94313.0,0.1]
[1734965023519,0.00353257,94344.0,94341.0,0.211996]
[1734965023721,0.00353257,94344.0,94342.0,0.0212296]
[1734965024327,0.00053257,94344.0,94342.0,0.0212296]
[1734965024539,0.00053257,94344.0,94332.0,0.02142747]
[1734965024540,0.001,94336.0,94332.0,0.02142747]
[1734965024764,0.001,94336.0,94334.0,0.212011]
[1734965025214,0.00053257,94344.0,94334.0,0.212011]
[1734965025508,0.00053257,94344.0,94342.0,0.003]
[1734965025921,0.01660268,94342.0,94336.0,0.212008]
[1734965026123,0.01660268,94342.0,94332.0,0.02142747]
[1734965026256,0.00053257,94344.0,94335.0,0.0033]
[1734965026456,0.00053257,94344.0,94330.0,0.16274747]
[1734965026835,0.00053257,94344.0,94331.0,0.03882696]
[1734965027044,0.00053257,94344.0,94328.0,0.02146432]
[1734965027255,0.211994,94342.0,94328.0,0.02146432]
[1734965027455,0.1,94343.0,94328.0,0.02146432]
[1734965027668,0.1,94343.0,94320.0,0.212042]
[1734965027885,0.00053257,94344.0,94314.0,0.02102268]
[1734965027886,0.1,94338.0,94314.0,0.02102268]
[1734965028313,0.1,94336.0,94315.0,0.22683352]
[1734965028524,0.1,94333.0,94320.0,0.212043]
[1734965028712,0.1,94332.0,94308.0,0.22563921]
[1734965028963,0.1,94332.0,94319.0,0.212045]
[1734965029389,0.0166061,94329.0,94313.0,0.212059]
[1734965029592,0.0166061,94329.0,94314.0,0.212057]
[1734965029813,0.1,94332.0,94316.0,0.212053]
[1734965030014,0.1,94332.0,94315.0,0.01470995]
[1734965030015,0.001,94338.0,94315.0,0.01470995]
[1734965030219,0.001,94338.0,94323.0,0.212035]
[1734965030437,0.001,94338.0,94327.0,0.212026]
[1734965030676,0.001,94338.0,94316.0,0.10398632]
[1734965030677,0.211986,94346.0,94328.0,0.212025]
[1734965030883,0.0804,94350.0,94328.0,0.212025]
[1734965031105,0.1,94346.0,94328.0,0.212025]
[1734965031309,0.211981,94348.0,94328.0,0.212025]
[1734965031513,0.211981,94348.0,94320.0,0.212043]
[1734965031718,0.311981,94348.0,94320.0,0.31602932]
[1734965031938,0.002,94338.0,94328.0,0.212025]
[1734965032145,0.002,94338.0,94329.0,0.0212025]
[1734965032367,0.1,94359.0,94330.0,0.10398632]
[1734965032572,0.3983361,94375.0,94330.0,0.10398632]
[1734965032573,0.01353257,94344.0,94341.0,0.211996]
[1734965032756,0.01353257,94344.0,94330.0,0.10398632]
[1734965032757,0.01353257,94344.0,94337.0,0.02097197]
[1734965032964,0.01353257,94344.0,94339.0,0.211999]
[1734965033199,0.01353257,94344.0,94341.0,0.211996]
[1734965033404,0.01353257,94344.0,94343.0,0.211992]
[1734965033609,0.01353257,94344.0,94343.0,0.31597832]
[1734965033834,0.01353257,94344.0,94343.0,0.39207345]
[1734965034043,0.09320755,94373.0,94369.0,0.423865]
[1734965034248,0.09320755,94392.0,94370.0,0.10398632]
[1734965034579,0.09320755,94392.0,94378.0,0.211911]
[1734965034778,0.09320755,94392.0,94378.0,0.03151934]
[1734965034981,0.09320755,94392.0,94379.0,0.10398632]
[1734965035184,0.09320755,94392.0,94379.0,0.211911]
[1734965035367,0.09320755,94392.0,94379.0,0.423822]
[1734965035576,0.211859,94403.0,94379.0,0.423822]
[1734965035786,0.001,94392.0,94385.0,0.02077875]
[1734965036555,0.001,94392.0,94372.0,0.01383232]
[1734965036727,0.001,94392.0,94361.0,0.15]
[1734965036728,0.211884,94391.0,94375.0,0.02125437]
[1734965036941,0.00115983,94392.0,94375.0,0.02125437]
[1734965037144,0.00015983,94392.0,94376.0,0.31590432]
[1734965037346,0.00215983,94392.0,94377.0,0.03371587]
[1734965037545,0.00215983,94392.0,94375.0,0.02125437]
[1734965037954,0.00015983,94392.0,94376.0,0.10398632]
[1734965038127,0.00115983,94392.0,94376.0,0.10398632]
[1734965038333,0.01115983,94392.0,94382.0,0.211903]
[1734965038596,0.01115983,94392.0,94388.0,0.211889]
[1734965038717,0.01015983,94392.0,94389.0,0.33706322]
[1734965038910,0.01115983,94392.0,94389.0,0.33706322]
[1734965039333,0.01115983,94392.0,94389.0,0.54895122]
[1734965039742,0.01115983,94392.0,94391.0,0.02095401]
[1734965040011,0.01115983,94392.0,94391.0,0.12494033]
[1734965040229,0.01015983,94392.0,94391.0,0.20312105]
[1734965041317,0.0825,94433.0,94396.0,0.1]
[1734965041524,0.00016037,94427.0,94420.0,0.211818]
[1734965041928,0.00016037,94427.0,94403.0,0.211857]
[1734965042145,0.00016037,94427.0,94415.0,0.02099433]
[1734965042569,0.1,94407.0,94379.0,0.01376311]
[1734965042767,0.14948632,94426.0,94381.0,0.211907]
[1734965042768,0.1,94402.0,94381.0,0.211907]
[1734965042970,0.1,94402.0,94386.0,0.211894]
[1734965043179,0.1,94402.0,94386.0,0.31588032]
[1734965043375,0.1,94402.0,94391.0,0.003]
[1734965043582,0.0165943,94399.0,94392.0,0.03188803]
[1734965043802,0.0165943,94399.0,94380.0,0.02154614]
[1734965043996,0.0001712,94392.0,94380.0,0.02154614]
[1734965044203,0.1,94387.0,94386.0,0.001]
[1734965044402,0.20398632,94387.0,94386.0,0.001]
[1734965044647,0.20531076,94387.0,94365.0,0.14096937]
[1734965044820,0.1,94378.0,94365.0,0.14096937]
[1734965045029,0.1,94378.0,94358.0,0.02102151]
[1734965045230,0.1,94367.0,94358.0,0.00015983]
[1734965045582,0.1455,94359.0,94358.0,0.00015983]
[1734965045784,0.25081121,94359.0,94358.0,0.00015983]
[1734965046012,0.25081121,94359.0,94337.0,0.09397958]
[1734965046013,0.312003,94338.0,94337.0,0.09397958]
[1734965046423,0.1,94333.0,94322.0,0.02070744]
[1734965046623,0.211991,94344.0,94314.0,0.212057]
[1734965046624,0.1,94328.0,94314.0,0.212057]
[1734965046773,0.1,94330.0,94315.0,0.10398632]
[1734965046975,0.1,94330.0,94307.0,0.212071]
[1734965046976,0.1,94328.0,94313.0,0.02160084]
[1734965047180,0.212015,94333.0,94307.0,0.013667]
[1734965047357,0.1,94328.0,94308.0,0.10398632]
[1734965047563,0.1,94330.0,94309.0,0.212068]
[1734965047767,0.001,94338.0,94310.0,0.10398632]
[1734965047969,0.00016013,94330.0,94312.0,0.02131436]
[1734965048234,0.00016013,94330.0,94321.0,0.212041]
[1734965048396,0.00016013,94330.0,94324.0,0.212033]
[1734965048589,0.00016013,94330.0,94325.0,0.13558825]
[1734965048778,0.00016013,94330.0,94326.0,0.21203]
[1734965048980,0.00016013,94330.0,94327.0,0.10398632]
[1734965049400,0.00016013,94330.0,94328.0,0.212026]
[1734965049617,0.00016013,94330.0,94329.0,0.10398632]
[1734965049856,0.00016013,94330.0,94329.0,0.15995105]
[1734965050063,0.00016013,94330.0,94329.0,0.05596473]
[1734965050221,0.00016013,94330.0,94310.0,0.15]
[1734965050429,0.00016013,94330.0,94313.0,0.10398632]
[1734965050680,0.00016013,94330.0,94328.0,0.002]
[1734965051288,0.00016013,94330.0,94313.0,0.10398632]
[1734965051483,0.00216013,94330.0,94313.0,0.02998632]
[1734965051686,0.00216013,94330.0,94314.0,0.23761508]
[1734965051891,0.00216013,94330.0,94315.0,0.10398632]
[1734965052100,0.00216013,94330.0,94321.0,0.02101027]
[1734965052319,0.00216013,94330.0,94314.0,0.02555808]
[1734965052537,0.00216013,94330.0,94311.0,0.212063]
[1734965052763,0.00216013,94330.0,94310.0,0.0135315]
[1734965052764,0.212023,94329.0,94310.0,0.0135315]
[1734965052980,0.212023,94329.0,94301.0,0.2332987]
[1734965052981,0.00016013,94330.0,94311.0,0.10398632]
[1734965053197,0.00016013,94330.0,94329.0,0.212023]
[1734965053433,0.00016013,94330.0,94329.0,0.31600932]
[1734965053642,0.00016013,94330.0,94328.0,0.002]
[1734965053863,0.00016013,94330.0,94322.0,0.212038]
[1734965054039,0.00016013,94330.0,94327.0,0.212028]
[1734965054316,0.002,94329.0,94327.0,0.212028]
[1734965054729,0.002,94329.0,94328.0,0.10398632]
[1734965055378,0.099,94319.0,94316.0,0.0207873]
[1734965055582,0.212058,94314.0,94289.0,0.212112]
[1734965056071,0.099,94307.0,94289.0,0.01402553]
[1734965056276,0.20298632,94313.0,94288.0,0.02117158]
[1734965056448,0.1787,94328.0,94292.0,0.212105]
[1734965056652,0.099,94320.0,94301.0,0.31015792]
[1734965056864,0.212028,94327.0,94303.0,0.212082]
[1734965057090,0.002,94314.0,94304.0,0.10398632]
[1734965057466,0.099,94314.0,94302.0,0.05222909]
[1734965057666,0.099,94314.0,94301.0,0.02165795]
[1734965057915,0.0797,94328.0,94302.0,0.10398632]
[1734965058118,0.09320755,94341.0,94320.0,0.1]
[1734965058319,0.09320755,94341.0,94327.0,0.212028]
[1734965058609,0.09320755,94341.0,94329.0,0.212023]
[1734965058788,0.09320755,94341.0,94329.0,0.39001695]
[1734965058990,0.09320755,94362.0,94329.0,0.39001695]
[1734965059165,0.09320755,94362.0,94337.0,0.1]
[1734965059356,0.09336792,94362.0,94357.0,0.21196]
[1734965059556,0.09336792,94362.0,94359.0,0.211956]
[1734965059764,0.00016037,94362.0,94361.0,0.211951]
[1734965059959,0.09320755,94378.0,94377.0,0.211916]
[1734965060162,0.07751407,94378.0,94377.0,0.41590232]
[1734965060578,0.07751407,94378.0,94377.0,0.31590232]
[1734965060777,0.07751407,94378.0,94361.0,0.10532671]
[1734965060983,0.211914,94378.0,94362.0,0.10398632]
[1734965061189,0.099,94382.0,94362.0,0.31593432]
[1734965061394,0.099,94373.0,94362.0,0.10398632]
[1734965061593,0.099,94373.0,94362.0,0.03372857]
[1734965061825,0.099,94373.0,94353.0,0.43740628]
[1734965062028,0.099,94373.0,94355.0,0.211965]
[1734965062229,0.423854,94372.0,94354.0,0.10398632]
[1734965062428,0.423854,94372.0,94349.0,0.211978]
[1734965062688,0.0165995,94369.0,94354.0,0.31595232]
[1734965062902,0.0165995,94369.0,94354.0,0.10398632]
[1734965063105,0.0165995,94369.0,94356.0,0.211962]
[1734965063313,0.0165995,94369.0,94360.0,0.211952]
[1734965063567,0.0165995,94369.0,94357.0,0.31594632]
[1734965063568,0.0165995,94369.0,94357.0,0.31594532]
[1734965063778,0.0165995,94369.0,94358.0,0.03372315]
[1734965063993,0.00016034,94382.0,94363.0,0.10398632]
[1734965064201,0.00016034,94382.0,94374.0,0.211922]
[1734965064404,0.00016034,94382.0,94366.0,0.21194]
[1734965064609,0.099,94379.0,94358.0,0.03372315]
[1734965064823,0.211913,94378.0,94358.0,0.10398632]
[1734965065435,0.099,94376.0,94359.0,0.423912]
[1734965065641,0.004,94372.0,94360.0,0.02158755]
[1734965065853,0.004,94372.0,94361.0,0.12734068]
[1734965066058,0.00016034,94382.0,94377.0,0.211915]
[1734965066500,0.00016034,94382.0,94378.0,0.10398632]
[1734965066710,0.00016034,94382.0,94381.0,0.1]
[1734965066914,0.00016034,94382.0,94363.0,0.1]
[1734965067222,0.00016034,94382.0,94360.0,0.02158755]
[1734965067223,0.00016034,94382.0,94379.0,0.211911]
[1734965067423,0.00016034,94382.0,94381.0,0.41589332]
[1734965067672,0.099,94419.0,94406.0,0.21185]
[1734965068081,0.13981132,94431.0,94406.0,0.31583632]
[1734965068354,0.13981132,94431.0,94408.0,0.211846]
[1734965068609,0.099,94421.0,94420.0,0.23999589]
[1734965068813,0.00016037,94431.0,94420.0,0.34398221]
[1734965069022,0.099,94430.0,94421.0,0.10398632]
[1734965069224,0.00016037,94431.0,94421.0,0.10398632]
[1734965069431,0.099,94422.0,94421.0,0.10398632]
[1734965069640,0.099,94410.0,94393.0,0.1]
[1734965069852,0.099,94410.0,94394.0,0.10398632]
[1734965070051,0.099,94410.0,94395.0,0.211875]
[1734965070255,0.099,94410.0,94396.0,0.15848565]
[1734965070461,0.099,94409.0,94396.0,0.05449933]
[1734965070665,0.099,94407.0,94401.0,0.02090829]
[1734965070866,0.099,94407.0,94395.0,0.10398632]
[1734965071115,0.099,94407.0,94385.0,0.211896]
[1734965071289,0.099,94407.0,94395.0,0.02131797]
[1734965071486,0.099,94407.0,94387.0,0.15921097]
[1734965071670,0.31085,94407.0,94388.0,0.15149595]
[1734965072033,0.211839,94411.0,94389.0,0.211889]
[1734965072168,0.21185,94406.0,94395.0,0.002]
[1734965072803,0.099,94391.0,94380.0,0.01723361]
[1734965072991,0.099,94391.0,94388.0,0.001]
[1734965073198,0.211886,94390.0,94388.0,0.001]
[1734965073418,0.211886,94390.0,94364.0,0.03198133]
[1734965073607,0.211931,94370.0,94345.0,0.1]
[1734965073809,0.211906,94382.0,94346.0,0.10398632]
[1734965073810,0.099,94352.0,94346.0,0.10398632]
[1734965074038,0.099,94352.0,94326.0,0.1]
[1734965074255,0.099,94352.0,94346.0,0.00016034]
[1734965074455,0.099,94378.0,94347.0,0.10398632]
[1734965074652,0.0165998,94384.0,94362.0,0.211947]
[1734965075050,0.099,94383.0,94362.0,0.31593332]
[1734965075462,0.001,94370.0,94362.0,0.31593332]
[1734965076046,0.0165979,94382.0,94362.0,0.52788232]
[1734965076297,0.0165979,94382.0,94372.0,0.211927]
[1734965076519,0.0165979,94382.0,94370.0,0.23999589]
[1734965076742,0.1155979,94382.0,94371.0,0.10398632]
[1734965077063,0.1155979,94382.0,94373.0,0.02168983]
[1734965077701,0.0165979,94382.0,94374.0,0.211922]
[1734965077862,0.0755,94408.0,94376.0,0.25]
[1734965078062,0.099,94407.0,94382.0,0.1]
[1734965078303,0.099,94407.0,94375.0,0.02336118]
[1734965078304,0.099,94406.0,94383.0,0.10398632]
[1734965078602,0.211853,94405.0,94384.0,0.22229763]
[1734965078751,0.211853,94405.0,94386.0,0.211895]
[1734965078964,0.099,94401.0,94388.0,0.211891]
[1734965079167,0.099,94401.0,94386.0,0.211895]
[1734965079168,0.14027292,94432.0,94392.0,0.25]
[1734965079367,0.14027292,94432.0,94391.0,0.02088352]
[1734965079368,0.00016031,94413.0,94411.0,0.1]
[1734965079568,0.00016031,94413.0,94412.0,0.39640644]
[1734965080257,0.00016031,94413.0,94406.0,0.211849]
[1734965080405,0.00016031,94413.0,94407.0,0.10398632]
[1734965080584,0.00016031,94413.0,94411.0,0.003]
[1734965081400,0.211837,94412.0,94384.0,0.01039863]
[1734965081604,0.09916031,94413.0,94384.0,0.01039863]
[1734965081808,0.211853,94405.0,94385.0,0.10398632]
[1734965082004,0.211853,94405.0,94386.0,0.211895]
[1734965082190,0.099,94407.0,94392.0,0.211882]
[1734965082437,0.099,94407.0,94393.0,0.03372255]
[1734965082637,0.310848,94407.0,94393.0,0.03372255]
[1734965082958,0.0821,94408.0,94390.0,0.211886]
[1734965083300,0.0821,94408.0,94391.0,0.211884]
[1734965083514,0.0821,94408.0,94392.0,0.001]
[1734965083715,0.0821,94408.0,94398.0,0.211868]
[1734965083916,0.00016031,94413.0,94399.0,0.03168543]
[1734965084132,0.00016031,94413.0,94398.0,0.10398632]
[1734965084133,0.099,94403.0,94398.0,0.10398632]
[1734965084330,0.003,94408.0,94398.0,0.10398632]
[1734965084543,0.003,94408.0,94391.0,0.211884]
[1734965084544,0.003,94408.0,94399.0,0.211866]
[1734965084752,0.003,94408.0,94388.0,0.02135721]
[1734965084753,0.211859,94402.0,94388.0,0.02135721]
[1734965084959,0.099,94403.0,94386.0,0.211895]
[1734965084960,0.211862,94401.0,94386.0,0.211895]
[1734965085161,0.099,94403.0,94387.0,0.04392825]
[1734965085580,0.099,94403.0,94388.0,0.211891]
[1734965085783,0.099,94406.0,94388.0,0.211891]
[1734965086085,0.099,94403.0,94387.0,0.06462554]
[1734965086311,0.099,94403.0,94388.0,0.01686119]
[1734965086512,0.099,94403.0,94388.0,0.211891]
[1734965086718,0.313857,94403.0,94387.0,0.00748673]
[1734965086904,0.313857,94403.0,94387.0,0.21937773]
[1734965087103,0.310857,94403.0,94388.0,0.05352681]
[1734965087630,0.311857,94403.0,94388.0,0.05352681]
[1734965088006,0.099,94402.0,94388.0,0.05352681]
[1734965088221,0.211885,94391.0,94372.0,0.211925]
[1734965088624,0.211885,94391.0,94375.0,0.02336118]
[1734965088847,0.211885,94391.0,94380.0,0.02158426]
[1734965089244,0.211876,94395.0,94380.0,0.02158426]
[1734965089455,0.211854,94405.0,94381.0,0.10398632]
[1734965089662,0.099,94400.0,94382.0,0.03608478]
[1734965089861,0.211888,94390.0,94382.0,0.03608478]
[1734965090067,0.099,94393.0,94380.0,0.02158426]
[1734965090286,0.1,94421.0,94350.0,0.23999589]
[1734965090287,0.211903,94383.0,94360.0,0.211953]
[1734965090492,0.099,94390.0,94361.0,0.10398632]
[1734965090695,0.211901,94384.0,94370.0,0.02111743]
[1734965090894,0.099,94390.0,94371.0,0.211929]
[1734965091120,0.211893,94388.0,94371.0,0.02330464]
[1734965091505,0.211893,94388.0,94385.0,8.56e-05]
[1734965091719,0.0815,94391.0,94385.0,8.56e-05]
[1734965092075,0.099,94397.0,94385.0,8.56e-05]
[1734965092278,0.099,94397.0,94386.0,0.00696713]
[1734965092484,0.310893,94387.0,94386.0,0.00696713]
[1734965092681,0.46247932,94387.0,94386.0,0.00696713]
[1734965092880,0.46247932,94387.0,94385.0,8.56e-05]
[1734965093108,0.28561077,94386.0,94385.0,6e-07]
[1734965093289,0.310927,94372.0,94371.0,0.00016034]
[1734965093486,0.310927,94372.0,94329.0,0.01546277]
[1734965093487,0.423946,94352.0,94331.0,0.212018]
[1734965093723,0.099,94347.0,94331.0,0.10398632]
[1734965093920,0.212001,94340.0,94329.0,0.00053257]
[1734965094124,0.212001,94340.0,94330.0,0.02125676]
[1734965094392,0.099,94347.0,94329.0,0.00053257]
[1734965094693,0.21201,94335.0,94329.0,0.00053257]
[1734965095258,0.31101,94335.0,94329.0,0.00053257]
[1734965095461,0.211997,94341.0,94329.0,0.00053257]
[1734965095462,0.099,94334.0,94329.0,0.00053257]
[1734965095661,0.212014,94333.0,94329.0,0.00053257]
[1734965095862,0.099,94330.0,94329.0,0.00053257]
[1734965096067,0.001,94347.0,94329.0,0.00053257]
[1734965096275,0.099,94348.0,94329.0,0.00053257]
[1734965096803,0.099,94348.0,94330.0,0.212021]
[1734965096804,0.211983,94347.0,94330.0,0.212021]
[1734965096928,0.211983,94347.0,94331.0,0.02135536]
[1734965097332,0.099,94348.0,94332.0,0.10398632]
[1734965097542,0.099,94348.0,94334.0,0.212011]
[1734965097749,0.099,94348.0,94335.0,0.10398632]
[1734965097953,0.099,94348.0,94331.0,0.02135536]
[1734965097954,0.211983,94347.0,94336.0,0.01268742]
[1734965098160,0.211983,94347.0,94332.0,0.212017]
[1734965098357,0.099,94332.0,94329.0,0.00153257]
[1734965098562,0.099,94330.0,94329.0,0.00153257]
[1734965098801,0.099,94330.0,94329.0,0.00053257]
[1734965099876,0.099,94330.0,94329.0,0.00501619]
[1734965100101,0.099,94330.0,94329.0,0.00253257]
[1734965101037,0.212005,94338.0,94329.0,0.00253257]
[1734965101038,0.099,94341.0,94329.0,0.00053257]
[1734965101325,0.001,94330.0,94329.0,0.00053257]
[1734965101528,0.001,94330.0,94317.0,0.212049]
[1734965101529,0.001,94330.0,94317.0,0.15994626]
[1734965101739,0.099,94328.0,94318.0,0.03720023]
[1734965101945,0.0181402,94330.0,94319.0,0.10398632]
[1734965101946,0.0171402,94330.0,94319.0,0.10398632]
[1734965102149,0.00053411,94330.0,94327.0,0.212026]
[1734965102351,0.00053411,94330.0,94329.0,0.212023]
[1734965102560,0.00053411,94330.0,94328.0,0.00030145]
[1734965102770,0.00053411,94330.0,94323.0,0.02075742]
[1734965102983,0.00053411,94330.0,94329.0,0.00030126]
[1734965103154,0.00053411,94330.0,94329.0,0.10398632]
[1734965103370,0.00053411,94330.0,94329.0,0.03397933]
[1734965103560,0.00053411,94330.0,94329.0,0.00030126]
[1734965104002,0.00053411,94330.0,94329.0,0.10398632]
[1734965104213,0.00053411,94330.0,94329.0,0.10684447]
[1734965104429,0.00053411,94330.0,94329.0,0.12234988]
[1734965104638,0.00053411,94330.0,94329.0,0.00285815]
[1734965104847,0.09953411,94330.0,94329.0,8.56e-05]
[1734965105051,0.11613996,94330.0,94329.0,8.56e-05]
[1734965105673,0.22145137,94330.0,94329.0,8.56e-05]
[1734965105847,0.22112628,94330.0,94329.0,8.56e-05]
[1734965106047,0.20452043,94330.0,94329.0,8.56e-05]
[1734965106267,0.20584561,94330.0,94329.0,8.56e-05]
[1734965106477,0.20452043,94330.0,94329.0,8.56e-05]
[1734965106849,0.10053411,94330.0,94329.0,8.56e-05]
[1734965107928,0.099,94309.0,94300.0,0.0001257]
[1734965108119,0.19232294,94330.0,94300.0,0.0001257]
[1734965108120,0.099,94304.0,94300.0,0.0001257]
[1734965108258,0.212082,94303.0,94300.0,0.0001257]
[1734965108659,0.099,94301.0,94300.0,0.0001257]
[1734965109107,0.311086,94301.0,94300.0,0.0001257]
[1734965109313,0.54167232,94301.0,94300.0,0.0001257]
[1734965109891,0.5422061,94301.0,94300.0,0.0001257]
[1734965110598,0.5432061,94301.0,94300.0,0.0001257]
[1734965110997,0.5422061,94301.0,94300.0,0.0001257]
[1734965111211,0.22613378,94301.0,94300.0,0.0001257]
[1734965111399,0.08223378,94301.0,94300.0,0.0001257]
[1734965111605,0.00153378,94301.0,94300.0,0.0001257]
[1734965111814,0.00053378,94301.0,94300.0,0.02134857]
[1734965112358,0.00353378,94301.0,94300.0,0.02134857]
[1734965112781,0.00353378,94301.0,94300.0,0.03739901]
[1734965112924,0.00353378,94301.0,94300.0,0.01617614]
[1734965113127,0.00353378,94301.0,94300.0,0.0001257]
[1734965113585,0.01714344,94301.0,94300.0,0.0001257]
[1734965113820,0.01714344,94301.0,94300.0,0.0011257]
[1734965114149,0.11614344,94301.0,94300.0,0.0011257]
[1734965114360,0.11614344,94301.0,94300.0,0.0001257]
[1734965114562,0.22012976,94301.0,94300.0,0.0001257]
[1734965114989,0.22312976,94301.0,94300.0,0.0001257]
[1734965115279,0.2065201,94301.0,94300.0,0.0001257]
[1734965115471,0.2035201,94301.0,94300.0,0.0001257]
[1734965115726,0.20484577,94301.0,94300.0,0.0001257]
[1734965115933,0.09953378,94301.0,94300.0,0.0001257]
[1734965116136,0.00053378,94301.0,94300.0,0.0001257]
[1734965116562,0.212089,94300.0,94279.0,0.212134]
[1734965116762,0.212089,94300.0,94280.0,0.0212134]
[1734965116972,0.099,94292.0,94289.0,0.02095356]
[1734965117169,0.212098,94296.0,94270.0,0.01616599]
[1734965117372,0.00053378,94301.0,94286.0,0.02136787]
[1734965117683,0.212091,94299.0,94286.0,0.02136787]
[1734965117920,0.212091,94299.0,94287.0,0.02334989]
[1734965118137,0.311089,94300.0,94287.0,0.02334989]
[1734965118335,0.212091,94299.0,94287.0,0.02334989]